bitfinex/quotes_ETHUSD_20250731
["timestamp","ask_amount","ask_price","bid_price","bid_amount"]
[1753977796668,0.24678118,3794.6,3794.5,4.9858]
[1753977797558,0.4669,3794.8,3794.5,9.1958]
[1753977797855,1.17370574,3794.7,3794.5,9.1958]
[1753977798045,0.9269,3794.7,3794.5,9.1958]
[1753977798863,0.4703,3794.6,3794.5,4.21]
[1753977799038,3.9410676,3794.6,3794.5,8.268]
[1753977799538,2.63573382,3794.1,3793.9,0.132]
[1753977799737,3.56235519,3794.5,3794.0,4.058]
[1753977799941,0.2469155,3794.4,3794.0,4.058]
[1753977800253,0.7172155,3794.4,3794.0,5.14838285]
[1753977800460,0.4703,3794.4,3794.0,5.14838285]
[1753977800674,0.6023,3794.4,3794.1,2.63565777]
[1753977800860,0.132,3794.4,3794.2,4.064]
[1753977801377,0.37899162,3794.6,3794.3,2.63552373]
[1753977801523,0.04,3794.9,3794.4,4.063]
[1753977801726,0.41908648,3794.9,3794.4,4.063]
[1753977801927,0.24708648,3794.8,3794.4,6.69844662]
[1753977802468,0.24708648,3794.8,3794.5,2.63535089]
[1753977802640,0.24708648,3794.8,3794.6,4.063]
[1753977802979,0.24708648,3794.8,3794.6,7.83871154]
[1753977803122,0.24706586,3794.7,3794.5,0.132]
[1753977803322,0.71736586,3794.6,3794.4,0.132]
[1753977803560,2.63546278,3794.4,3794.3,4.21]
[1753977803728,3.94142549,3794.4,3794.3,4.064]
[1753977803929,1.30596271,3794.4,3794.3,4.064]
[1753977804137,3.94142549,3794.4,3794.3,4.064]
[1753977804428,1.30596271,3794.4,3794.3,4.064]
[1753977804725,0.37906271,3794.4,3794.3,4.064]
[1753977805026,0.24706271,3794.4,3794.3,4.4704]
[1753977805457,0.04,3794.9,3794.3,4.4704]
[1753977805458,0.172,3794.9,3794.3,4.9663]
[1753977805632,0.24707947,3794.8,3794.3,4.9663]
[1753977805831,0.24707947,3794.8,3794.4,3.25296278]
[1753977806032,0.24707947,3794.7,3794.5,4.064]
[1753977806377,0.04,3794.9,3794.5,5.09989517]
[1753977806670,0.75735316,3794.9,3794.5,4.196]
[1753977806870,0.24705316,3794.8,3794.5,4.196]
[1753977807880,0.24705316,3794.8,3794.5,6.83138846]
[1753977808183,0.24705316,3794.8,3794.5,6.83137468]
[1753977808382,0.24705316,3794.8,3794.7,2.63525443]
[1753977808540,0.28707672,3794.9,3794.8,2.63518498]
[1753977808740,0.04,3795.9,3794.8,7.52096354]
[1753977809077,0.04,3795.9,3795.6,2.63462957]
[1753977809237,0.04,3795.9,3795.7,8.364]
[1753977810574,0.04,3795.9,3795.8,4.26]
[1753977810741,0.04,3795.9,3795.8,5.02521162]
[1753977811382,0.04,3795.9,3795.8,2.02682087]
[1753977811762,0.04,3795.9,3795.8,4.66131162]
[1753977811975,0.04,3795.9,3795.8,2.02682087]
[1753977812374,0.04,3795.9,3795.7,4.104]
[1753977812761,0.28702628,3795.9,3795.7,4.104]
[1753977813111,0.04,3795.9,3795.7,4.104]
[1753977816270,0.04,3795.9,3795.7,8.364]
[1753977819009,0.04,3795.9,3795.8,0.132]
[1753977820171,0.04,3795.9,3795.8,5.0314212]
[1753977820409,2.63384849,3796.8,3796.1,2.63422604]
[1753977820722,0.62489202,3796.7,3796.2,7.62770823]
[1753977821018,0.49289202,3796.6,3796.3,2.63413928]
[1753977821174,0.132,3796.7,3796.1,9.01606683]
[1753977821175,0.2464461,3796.5,3796.4,4.377]
[1753977821612,0.2464461,3796.6,3796.4,4.377]
[1753977821801,0.2464461,3796.5,3796.4,4.377]
[1753977822025,0.2464461,3796.6,3796.4,4.377]
[1753977822187,0.49283765,3796.6,3796.4,4.377]
[1753977822394,0.2464461,3796.5,3796.4,4.377]
[1753977822590,0.2464461,3796.5,3796.4,4.92944042]
[1753977822803,0.2463515,3796.5,3796.4,5.42534042]
[1753977823025,0.04,3796.9,3796.6,2.63390584]
[1753977823190,0.28634912,3796.9,3796.7,4.387]
[1753977823390,0.24634912,3796.8,3796.7,4.387]
[1753977823586,0.49269824,3796.8,3796.7,4.387]
[1753977823826,0.96299824,3796.8,3796.7,4.387]
[1753977824597,3.56069688,3796.8,3796.7,4.387]
[1753977825105,3.69269688,3796.8,3796.7,4.387]
[1753977825292,3.69269688,3796.8,3796.4,4.341]
[1753977825293,2.634005,3796.5,3796.4,4.341]
[1753977825488,2.63421316,3796.2,3796.1,4.26]
[1753977825799,3.09081316,3796.2,3796.1,8.587]
[1753977826001,0.4566,3796.2,3795.2,10.589]
[1753977826323,0.132,3795.8,3795.3,4.057]
[1753977826523,0.132,3795.5,3795.3,4.057]
[1753977826724,0.5902,3795.5,3795.3,4.057]
[1753977827329,0.132,3795.5,3795.3,4.057]
[1753977827499,2.63443384,3795.9,3795.3,5.1088]
[1753977827831,0.132,3795.8,3795.5,2.63467944]
[1753977828010,0.132,3795.8,3795.6,4.057]
[1753977828328,2.63422102,3796.2,3795.6,4.057]
[1753977828329,2.63426999,3796.2,3795.6,6.6916279]
[1753977828514,0.4582,3796.4,3795.8,2.63443181]
[1753977828716,3.11775533,3796.6,3795.9,6.69135729]
[1753977828892,2.63407438,3796.4,3795.7,0.66916279]
[1753977829093,1.074,3796.3,3795.8,4.189]
[1753977829293,3.70816098,3796.3,3795.8,4.189]
[1753977829493,0.942,3796.2,3795.8,4.189]
[1753977829721,0.4838,3796.1,3795.8,4.189]
[1753977830498,2.7661972,3796.3,3795.8,4.189]
[1753977830699,0.4838,3796.0,3795.8,4.189]
[1753977830899,0.4838,3795.9,3795.8,4.057]
[1753977831095,0.942,3795.9,3795.8,4.057]
[1753977831333,0.942,3796.2,3795.8,4.057]
[1753977831830,3.57631927,3796.1,3795.8,4.057]
[1753977832133,0.4838,3796.1,3795.8,4.057]
[1753977832531,0.942,3796.0,3795.8,4.057]
[1753977832834,0.942,3795.9,3795.8,4.057]
[1753977833245,0.132,3796.1,3795.8,4.057]
[1753977833408,2.76629258,3796.1,3795.8,4.057]
[1753977833612,0.4838,3796.0,3795.8,4.057]
[1753977833812,0.132,3796.1,3795.8,4.057]
[1753977835735,0.132,3796.3,3795.9,2.63441397]
[1753977836037,0.132,3796.3,3796.0,4.057]
[1753977836223,0.6158,3796.3,3796.1,4.26]
[1753977836422,0.132,3796.3,3796.2,4.057]
[1753977837022,0.24639017,3796.5,3796.2,4.057]
[1753977837352,0.37839017,3796.5,3796.2,6.69120014]
[1753977837557,2.76581637,3796.8,3796.3,1.10832001]
[1753977837868,0.04,3796.9,3796.4,6.69105958]
[1753977837869,0.24640473,3796.7,3796.4,6.69105958]
[1753977838169,0.172,3796.9,3796.4,6.82305958]
[1753977838454,0.172,3796.9,3796.5,4.26]
[1753977838649,0.172,3796.9,3796.6,8.317]
[1753977838822,0.04,3796.9,3796.7,4.26]
[1753977839027,0.04,3796.9,3796.8,4.057]
[1753977841311,0.04,3796.9,3796.8,6.69079688]
[1753977841610,0.04,3796.9,3796.8,8.06246444]
[1753977841814,0.04,3796.9,3796.8,5.42866756]
[1753977842518,0.5238,3796.9,3796.8,5.42866756]
[1753977842714,0.5238,3796.9,3796.8,4.057]
[1753977842920,0.982,3796.9,3796.8,4.057]
[1753977843350,0.982,3796.9,3796.8,4.056]
[1753977845245,3.61572751,3796.9,3796.8,4.056]
[1753977845413,2.63379688,3796.8,3796.7,4.26]
[1753977845618,3.57579688,3796.8,3796.7,8.316]
[1753977846754,0.942,3796.8,3796.7,8.316]
[1753977847420,3.57579688,3796.8,3796.7,8.316]
[1753977847620,0.942,3796.8,3796.7,8.316]
[1753977847942,2.80573818,3796.9,3796.7,8.316]
[1753977847943,0.172,3796.9,3796.7,8.316]
[1753977848117,0.04,3796.9,3796.8,4.26]
[1753977848325,0.04,3796.9,3796.8,7.30769688]
[1753977849120,0.04,3796.9,3796.8,6.89379688]
[1753977849344,0.04,3796.9,3796.8,4.26]
[1753977849556,0.04,3796.9,3796.8,6.89379688]
[1753977849758,0.04,3796.9,3796.8,7.90921398]
[1753977851059,0.04,3796.9,3796.7,4.056]
[1753977851060,2.63379688,3796.8,3796.7,4.056]
[1753977851263,0.942,3796.8,3796.7,4.056]
[1753977851425,0.04,3796.9,3796.7,4.056]
[1753977851759,0.04,3796.9,3796.8,2.63379688]
[1753977852343,0.04,3796.9,3796.7,6.82184883]
[1753977852543,0.04,3796.9,3796.8,2.63379688]
[1753977852750,0.04,3796.9,3796.7,6.82183764]
[1753977853097,0.04,3796.9,3796.7,4.188]
[1753977853389,0.4838,3796.8,3796.7,4.188]
[1753977853978,0.04,3796.9,3796.7,4.188]
[1753977854280,0.982,3796.9,3796.7,4.188]
[1753977854477,0.4838,3796.8,3796.7,4.188]
[1753977854633,0.04,3796.9,3796.7,0.132]
[1753977854834,3.57579688,3796.8,3796.7,0.132]
[1753977855073,4.36656953,3796.8,3796.7,0.132]
[1753977855272,2.63393562,3796.6,3796.5,4.06]
[1753977855468,3.11773562,3796.6,3796.5,4.06]
[1753977855676,3.57581047,3796.8,3796.5,4.06]
[1753977855838,3.11771387,3796.7,3796.5,4.06]
[1753977856037,0.4838,3796.6,3796.5,4.06]
[1753977856235,0.04,3796.9,3796.5,4.06]
[1753977856236,0.04,3796.9,3796.6,2.63393347]
[1753977856436,0.04,3796.9,3796.7,4.113]
[1753977856738,0.04,3796.9,3796.5,0.406]
[1753977856739,0.03292246,3796.8,3796.5,4.109]
[1753977856941,2.63393562,3796.6,3796.5,4.109]
[1753977857153,3.84671953,3796.6,3796.5,4.109]
[1753977857670,4.76214525,3796.6,3796.5,4.109]
[1753977858278,2.63407438,3796.4,3796.3,4.067]
[1753977858448,2.88035829,3796.4,3796.3,4.067]
[1753977858777,3.84685829,3796.4,3796.3,4.067]
[1753977860085,4.84987924,3796.4,3796.3,4.067]
[1753977860489,4.85002871,3796.4,3796.3,4.067]
[1753977860700,2.63431319,3796.1,3795.2,8.96390549]
[1753977860907,2.63431319,3796.1,3795.3,4.059]
[1753977860908,2.63446825,3795.9,3795.3,4.059]
[1753977861192,3.60085716,3796.0,3795.3,4.059]
[1753977861378,0.9665,3796.0,3795.4,1.34368496]
[1753977861790,3.60089909,3796.0,3795.4,3.97844582]
[1753977862291,0.9665,3796.0,3795.4,1.34368496]
[1753977862481,0.9665,3796.0,3795.2,6.329]
[1753977862482,1.24584915,3795.9,3795.2,6.329]
[1753977862672,2.63483782,3795.3,3795.2,6.329]
[1753977862873,2.63483782,3795.3,3795.2,4.058]
[1753977863085,3.60133782,3795.3,3795.2,4.058]
[1753977863319,2.63492473,3795.2,3794.6,2.63529861]
[1753977863583,0.9665,3795.3,3794.7,5.05246007]
[1753977863788,3.60134885,3795.3,3794.7,4.058]
[1753977864019,2.63491017,3795.2,3794.7,4.058]
[1753977864294,2.63530464,3794.7,3794.6,4.058]
[1753977864500,2.63512393,3794.9,3794.6,4.058]
[1753977864799,2.63480316,3795.4,3794.6,4.058]
[1753977864800,0.9665,3794.7,3794.6,4.058]
[1753977865390,2.63518629,3794.8,3794.6,4.19]
[1753977865600,2.63516934,3794.9,3794.6,4.19]
[1753977866302,0.4962,3794.8,3794.6,4.058]
[1753977866870,0.132,3795.1,3794.6,4.058]
[1753977867092,0.132,3795.1,3794.7,0.4139]
[1753977867267,0.132,3795.1,3794.6,4.058]
[1753977867268,2.63523061,3794.8,3794.6,4.058]
[1753977867468,2.63509355,3795.0,3794.6,4.058]
[1753977867667,0.132,3794.9,3794.6,4.058]
[1753977868364,0.132,3794.9,3794.7,4.26]
[1753977868805,2.76712593,3794.9,3794.7,4.26]
[1753977869000,2.63518498,3794.8,3794.7,4.26]
[1753977869211,3.73363183,3794.9,3794.7,4.26]
[1753977869377,0.132,3794.9,3794.7,4.26]
[1753977869581,2.76695456,3795.2,3794.7,5.27839]
[1753977869997,3.26315456,3795.2,3794.7,5.27839]
[1753977870314,0.132,3795.2,3794.7,5.27839]
[1753977870481,0.132,3795.2,3794.7,7.91359704]
[1753977870680,0.132,3795.2,3794.7,7.91362605]
[1753977870879,0.132,3795.2,3794.8,4.13726668]
[1753977871080,2.63460757,3795.7,3795.0,2.63500342]
[1753977871312,0.132,3795.6,3795.0,2.63500342]
[1753977871812,2.76662976,3795.6,3795.0,2.63500342]
[1753977871980,2.76662976,3795.6,3795.1,4.26]
[1753977872332,2.76663839,3795.6,3795.2,8.397]
[1753977872907,0.132,3795.6,3795.3,4.6739]
[1753977873180,0.132,3795.6,3795.3,7.30871541]
[1753977873508,0.132,3795.6,3795.3,4.26]
[1753977873712,0.9665,3795.9,3795.3,4.392]
[1753977873713,2.6345766,3795.7,3795.3,4.392]
[1753977873916,3.1308477,3795.6,3795.3,4.392]
[1753977874210,0.4962,3795.6,3795.3,4.392]
[1753977875711,2.6347684,3795.4,3795.3,4.26]
[1753977875920,3.7332684,3795.4,3795.3,4.26]
[1753977876528,2.63521396,3794.8,3794.3,0.132]
[1753977876738,0.9665,3795.3,3794.3,4.392]
[1753977876936,2.63530198,3794.7,3794.4,4.062]
[1753977877237,0.9665,3794.6,3794.4,4.062]
[1753977877750,3.10563316,3794.6,3794.5,4.061]
[1753977878041,0.132,3794.7,3794.5,4.061]
[1753977878214,0.4962,3794.6,3794.5,4.061]
[1753977878410,3.60182388,3794.6,3794.5,8.321]
[1753977881236,3.60182388,3794.6,3794.5,4.26]
[1753977881440,3.60182388,3794.6,3794.5,8.32]
[1753977881641,4.21036317,3794.6,3794.5,4.06]
[1753977882740,3.60182388,3794.6,3794.5,4.06]
[1753977883607,0.132,3794.6,3794.5,4.06]
[1753977883914,3.73382388,3794.6,3794.5,4.06]
[1753977885461,0.132,3794.6,3794.5,4.06]
[1753977886209,2.76732388,3794.6,3794.5,4.06]
[1753977886638,0.132,3794.6,3794.5,4.06]
[1753977887260,0.132,3794.7,3794.5,7.52736102]
[1753977887407,0.132,3794.9,3794.5,7.94126102]
[1753977887608,0.132,3794.9,3794.5,4.892]
[1753977887834,1.0354,3794.9,3794.5,4.06]
[1753977888031,3.67057665,3794.9,3794.5,4.06]
[1753977888247,1.0354,3794.9,3794.5,4.06]
[1753977888559,0.132,3794.9,3794.5,6.6953764]
[1753977889356,0.132,3794.9,3794.6,0.4139]
[1753977889514,0.132,3795.0,3794.7,1.34805389]
[1753977889838,0.132,3795.0,3794.4,0.5459]
[1753977889839,0.132,3795.0,3794.8,4.068]
[1753977890544,3.53851554,3794.9,3794.8,4.068]
[1753977890854,0.132,3795.0,3794.8,4.068]
[1753977892032,0.132,3795.0,3794.8,8.328]
[1753977893049,0.4608,3794.9,3794.8,8.328]
[1753977893389,0.5746,3795.0,3794.8,8.328]
[1753977893561,0.4608,3794.9,3794.8,8.328]
[1753977893843,0.5746,3795.0,3794.8,8.328]
[1753977894344,1.0354,3795.0,3794.8,8.328]
[1753977894559,0.4608,3794.9,3794.8,4.26]
[1753977894715,3.53851554,3794.9,3794.8,4.26]
[1753977895116,0.9034,3794.9,3794.8,4.26]
[1753977895519,3.53851554,3794.9,3794.8,4.26]
[1753977895718,1.78055821,3794.9,3794.8,4.26]
[1753977895919,1.15000775,3794.9,3794.8,4.26]
[1753977896119,0.24660775,3794.9,3794.8,8.359]
[1753977896856,0.132,3795.0,3794.8,8.359]
[1753977897027,0.2465948,3795.2,3794.9,0.6675]
[1753977897246,0.132,3795.5,3795.0,4.114]
[1753977897447,0.37858425,3795.5,3795.1,4.26]
[1753977897642,0.24658425,3795.4,3795.2,8.374]
[1753977897931,0.24658425,3795.3,3795.2,8.374]
[1753977900243,2.88142207,3795.3,3795.2,8.374]
[1753977900433,4.3496354,3795.3,3795.2,8.374]
[1753977900632,4.4816354,3795.3,3795.2,4.26]
[1753977900934,2.63502163,3795.1,3794.9,4.084]
[1753977901160,1.14998425,3795.0,3794.9,4.084]
[1753977901538,0.24658425,3795.0,3794.9,4.084]
[1753977901737,0.37858425,3795.1,3794.9,4.084]
[1753977901962,0.24658425,3795.0,3794.9,4.084]
[1753977902336,1.14998425,3795.0,3794.9,4.084]
[1753977903563,3.78503036,3795.0,3794.9,4.084]
[1753977903933,1.14998425,3795.0,3794.9,4.084]
[1753977904139,0.24658425,3795.0,3794.9,4.084]
[1753977904481,3.53844611,3795.0,3794.9,4.084]
[1753977904688,1.80862502,3795.0,3794.4,4.26]
[1753977904898,2.63532985,3794.6,3794.5,4.058]
[1753977905054,3.67072985,3794.6,3794.5,4.058]
[1753977905381,1.0354,3794.6,3794.5,4.058]
[1753977905546,0.132,3794.6,3794.5,4.058]
[1753977905950,0.5928,3794.6,3794.5,4.058]
[1753977906489,3.22812388,3794.6,3794.5,4.058]
[1753977906669,3.67072388,3794.6,3794.5,4.058]
[1753977907000,3.91755853,3794.6,3794.5,4.058]
[1753977908492,1.28223465,3794.6,3794.5,4.058]
[1753977908679,3.91755853,3794.6,3794.5,4.058]
[1753977908852,4.57283361,3794.6,3794.5,4.058]
[1753977909057,4.57283361,3794.6,3794.1,0.04]
[1753977909058,2.6356017,3794.2,3794.1,0.04]
[1753977909388,2.7676017,3794.2,3794.1,0.04]
[1753977909604,3.6710017,3794.2,3794.1,4.098]
[1753977910670,1.0354,3794.2,3794.1,4.098]
[1753977911087,3.6710017,3794.2,3794.1,4.098]
[1753977911795,1.0354,3794.2,3794.1,4.098]
[1753977912214,0.132,3794.2,3794.1,9.93989404]
[1753977912412,0.132,3794.2,3794.1,10.93388344]
[1753977912605,0.132,3794.2,3794.1,4.098]
[1753977915012,3.6710017,3794.2,3794.1,4.098]
[1753977915218,3.6710017,3794.2,3794.1,0.04]
[1753977915219,10.7290017,3794.2,3794.1,0.04]
[1753977915422,1.584,3793.8,3793.1,0.04]
[1753977915582,0.52642914,3793.7,3793.1,0.04]
[1753977915954,2.63629653,3793.2,3793.1,0.04]
[1753977916117,3.78261382,3793.2,3793.1,0.04]
[1753977916282,3.66779653,3793.2,3793.1,0.04]
[1753977916589,2.76829653,3793.2,3793.1,0.04]
[1753977917014,0.132,3793.2,3793.1,0.04]
[1753977918896,2.76829653,3793.2,3793.1,0.04]
[1753977919217,6.91410704,3793.2,3793.1,0.04]
[1753977919398,11.52210704,3793.2,3793.1,0.04]
[1753977919575,13.76829997,3793.2,3793.1,0.04]
[1753977920993,13.21929997,3793.2,3793.1,0.04]
[1753977921330,13.52312855,3793.2,3793.1,0.04]
[1753977923539,9.46412855,3793.2,3793.1,0.04]
[1753977923824,3.37831051,3793.2,3793.1,0.04]
[1753977924024,7.191,3793.2,3793.1,0.04]
[1753977924224,3.132,3793.2,3793.1,0.04]
[1753977924426,0.132,3793.2,3793.1,0.04]
[1753977924614,2.76829653,3793.2,3793.1,0.04]
[1753977924991,0.132,3793.2,3793.1,0.04]
[1753977926925,0.132,3793.2,3793.1,4.87668856]
[1753977927138,0.132,3793.6,3793.3,2.63616718]
[1753977927648,0.132,3793.6,3793.2,2.63623426]
[1753977928506,0.132,3793.6,3793.3,2.63616439]
[1753977928710,0.132,3793.6,3793.5,11.52295582]
[1753977929037,0.132,3794.2,3794.1,2.63564872]
[1753977929419,0.132,3794.5,3794.4,2.63546278]
[1753977929621,0.132,3794.8,3794.4,0.7075]
[1753977929812,4.059,3795.4,3794.6,2.63528032]
[1753977930010,0.132,3795.0,3794.6,2.63528032]
[1753977930227,0.03293894,3794.9,3794.5,4.26]
[1753977930398,0.8995,3794.9,3794.5,4.26]
[1753977930802,0.132,3794.8,3794.5,4.26]
[1753977932499,0.8995,3794.7,3794.5,4.26]
[1753977932702,0.132,3794.6,3794.5,4.26]
[1753977932923,0.132,3794.6,3794.4,4.181]
[1753977933129,0.132,3794.6,3794.4,6.81644231]
[1753977933442,3.0,3795.3,3794.4,6.81644231]
[1753977933443,0.132,3794.8,3794.5,1.44448799]
[1753977933614,0.132,3794.8,3794.4,4.181]
[1753977933811,0.132,3794.8,3794.4,4.6349]
[1753977935254,0.132,3794.8,3794.4,7.2703583]
[1753977935630,0.132,3794.8,3794.4,4.6349]
[1753977936514,0.132,3794.8,3794.5,4.26]
[1753977937242,2.76719242,3794.8,3794.5,4.26]
[1753977937942,0.8995,3794.7,3794.5,4.26]
[1753977938140,0.132,3794.8,3794.5,4.26]
[1753977940856,0.132,3795.0,3794.7,2.63525443]
[1753977941053,0.132,3795.0,3794.7,6.85925443]
[1753977941260,0.132,3795.0,3794.7,7.31315443]
[1753977941559,0.132,3795.0,3794.7,4.6779]
[1753977941757,0.132,3795.0,3794.7,4.224]
[1753977941937,0.132,3795.0,3794.8,0.7075]
[1753977942137,0.132,3795.0,3794.8,0.4539]
[1753977942342,0.132,3795.0,3794.7,6.85925399]
[1753977943476,0.132,3795.0,3794.8,2.6351842]
[1753977943669,0.132,3795.0,3794.9,2.63511554]
[1753977943867,0.04,3795.9,3795.5,2.63465188]
[1753977944040,0.04,3795.9,3795.7,2.63451605]
[1753977944234,0.04,3795.9,3795.6,4.7779]
[1753977944647,0.04,3795.9,3795.6,4.324]
[1753977945023,0.04,3795.9,3795.6,6.9586267]
[1753977945226,0.04,3795.9,3795.6,4.324]
[1753977945839,0.04,3795.9,3795.6,6.95858257]
[1753977946448,0.04,3795.9,3795.6,4.324]
[1753977947254,0.04,3795.9,3795.6,4.7779]
[1753977947568,0.4618,3795.8,3795.7,4.353]
[1753977947737,3.52489075,3795.8,3795.7,4.353]
[1753977948067,4.27682069,3795.8,3795.7,4.353]
[1753977948832,4.27682069,3795.8,3795.5,4.348]
[1753977948833,1.64232994,3795.8,3795.5,4.348]
[1753977949067,2.63462957,3795.6,3795.5,4.348]
[1753977949267,2.76662957,3795.6,3795.5,4.348]
[1753977949466,3.65702957,3795.6,3795.5,4.348]
[1753977953271,2.63478309,3795.4,3795.3,4.339]
[1753977953508,3.52518309,3795.4,3795.3,4.339]
[1753977953676,3.22858309,3795.4,3795.3,4.339]
[1753977953867,3.65718309,3795.4,3795.3,4.339]
[1753977954202,4.28636436,3795.4,3795.3,4.339]
[1753977954405,2.63493895,3795.2,3795.1,4.334]
[1753977954706,3.65733895,3795.2,3795.1,4.334]
[1753977954990,1.0224,3795.2,3795.1,4.334]
[1753977955175,0.132,3795.2,3795.1,4.334]
[1753977955582,2.76690725,3795.2,3795.1,4.334]
[1753977955781,0.5938,3795.2,3795.1,4.334]
[1753977956001,0.132,3795.2,3795.1,4.334]
[1753977956480,0.132,3795.3,3795.1,4.7879]
[1753977956796,0.132,3795.3,3795.1,4.334]
[1753977960196,0.132,3795.3,3795.2,4.26]
[1753977960395,0.5606,3795.3,3795.2,4.26]
[1753977960702,0.132,3795.3,3795.2,4.26]
[1753977960904,0.2466782,3795.5,3795.2,8.46174918]
[1753977961058,0.132,3795.8,3795.3,4.408]
[1753977961259,2.63462957,3795.6,3795.3,4.408]
[1753977961501,0.24667374,3795.5,3795.3,4.408]
[1753977961805,0.132,3795.8,3795.4,0.4539]
[1753977961968,0.49334242,3795.8,3795.5,4.7036]
[1753977962170,0.04,3795.9,3795.6,0.4539]
[1753977962382,0.04,3795.9,3795.7,4.455]
[1753977963380,0.04,3795.9,3795.8,0.4539]
[1753977963907,0.04,3795.9,3795.8,7.34839075]
[1753977964406,0.04,3795.9,3795.8,4.7139]
[1753977964607,0.04,3795.9,3795.8,4.26]
[1753977967274,3.56482134,3795.9,3795.8,4.26]
[1753977967598,4.58793881,3795.9,3795.8,4.26]
[1753977968175,7.58793881,3795.9,3795.8,4.26]
[1753977968370,7.83451139,3795.9,3795.8,4.26]
[1753977969078,2.63469898,3795.5,3795.4,4.411]
[1753977969411,2.6347684,3795.4,3795.3,4.411]
[1753977969709,2.63483782,3795.3,3795.2,4.392]
[1753977970009,2.63504611,3795.0,3794.9,8.647]
[1753977970175,2.76704611,3795.0,3794.9,8.647]
[1753977970369,3.90416951,3795.0,3794.9,8.647]
[1753977972682,3.90416951,3795.0,3794.5,4.26]
[1753977972881,1.70935422,3794.9,3794.6,4.381]
[1753977973104,2.63525443,3794.7,3794.6,4.381]
[1753977973415,3.65765443,3794.7,3794.6,4.381]
[1753977973775,0.132,3794.7,3794.6,4.381]
[1753977974277,2.76725443,3794.7,3794.6,4.381]
[1753977974977,0.132,3794.7,3794.6,4.381]
[1753977975178,0.4618,3795.2,3794.6,10.67613633]
[1753977975380,2.76712205,3794.9,3794.6,10.67613633]
[1753977975634,2.76712205,3794.9,3794.6,4.381]
[1753977975786,0.8904,3794.8,3794.6,4.381]
[1753977975985,2.63525443,3794.7,3794.6,4.381]
[1753977976207,3.52561353,3794.8,3794.6,4.381]
[1753977976406,0.8904,3794.8,3794.6,4.381]
[1753977976717,0.4618,3794.8,3794.6,4.381]
[1753977976894,0.132,3794.9,3794.6,4.381]
[1753977977920,0.132,3794.9,3794.7,4.26]
[1753977978119,0.132,3794.9,3794.8,4.376]
[1753977978600,3.0,3795.5,3794.8,4.8299]
[1753977978601,2.76701474,3795.1,3794.8,4.8299]
[1753977978910,0.24660312,3795.0,3794.8,4.376]
[1753977979312,0.132,3795.1,3794.8,4.376]
[1753977979518,0.37859002,3795.1,3794.8,4.376]
[1753977979714,0.37859002,3795.1,3794.8,6.14584335]
[1753977979904,2.6349112,3795.2,3794.8,6.27784335]
[1753977980103,2.88156734,3795.1,3794.8,6.27784335]
[1753977980307,2.6349773,3795.1,3794.8,6.27784335]
[1753977980499,1.17128259,3795.0,3794.8,4.376]
[1753977980682,3.93839813,3794.9,3794.8,4.376]
[1753977981723,1.0567,3794.9,3794.8,4.376]
[1753977981921,0.132,3794.9,3794.8,4.376]
[1753977982215,0.24656527,3795.2,3794.8,5.6935]
[1753977982417,0.132,3795.6,3795.1,5.84123633]
[1753977982619,0.62510428,3795.6,3795.2,4.44]
[1753977982826,0.49310428,3795.5,3795.4,8.60800473]
[1753977983000,0.24655214,3795.5,3795.4,15.6010552]
[1753977983320,0.04,3795.9,3795.8,2.63449075]
[1753977983615,0.04,3795.9,3795.8,7.11849075]
[1753977983781,0.28651075,3795.9,3795.8,4.484]
[1753977984820,0.04,3795.9,3795.8,4.484]
[1753977986786,0.04,3795.9,3795.8,8.744]
[1753977987228,0.04,3795.9,3795.8,11.37849075]
[1753977987521,0.04,3795.9,3795.8,22.22394115]
[1753977987892,0.04,3795.9,3795.8,22.09194115]
[1753977988097,0.04,3795.9,3795.8,25.22394115]
[1753977988299,1e-08,3795.9,3795.8,32.37394115]
[1753977992623,1e-08,3795.9,3795.8,25.22394115]
[1753977993326,1e-08,3795.9,3795.8,32.37394115]
[1753977993819,1e-08,3795.9,3795.8,25.22394115]
[1753977994626,1e-08,3795.9,3795.8,32.37394115]
[1753977994780,1e-08,3795.9,3795.8,25.22394115]
[1753977996018,1e-08,3795.9,3795.8,32.12034115]
[1753977996325,1e-08,3795.9,3795.8,32.37394115]
[1753977996503,1e-08,3795.9,3795.8,25.22394115]
[1753977997128,0.04,3796.9,3796.8,2.63379688]
[1753977997332,0.04,3796.9,3796.8,11.79117656]
[1753977997628,0.5,3796.9,3796.8,11.92317656]
[1753977997812,0.9647,3796.9,3796.8,11.92317656]
[1753977999005,0.9647,3796.9,3796.8,9.28937968]
[1753977999208,0.04,3796.9,3796.8,11.92317656]
[1753977999930,0.9647,3796.9,3796.8,9.28937968]
[1753978000505,0.9647,3796.9,3796.8,8.89399999]
[1753978001525,0.9647,3796.9,3796.8,4.634]
[1753978002694,3.59842751,3796.9,3796.8,4.634]
[1753978003705,0.9647,3796.9,3796.8,4.634]
[1753978003895,3.73042751,3796.9,3796.8,4.634]
[1753978004295,1.0967,3796.9,3796.8,4.634]
[1753978004496,3.73042751,3796.9,3796.8,4.634]
[1753978004795,1.0967,3796.9,3796.8,4.634]